Cogmind - Beta 14 @@@ ROGUE MODE // 2024.10.03 @ 04:28:06 Player: Kiwi Result: Self-destructed Performance ------------- Evolutions (1) 500 Regions Visited (3) 600 Robots Destroyed (23) 115 Value Destroyed (603) 603 Prototype IDs (3) 60 Alien Tech Used (0) 0 Bonus (0) 0 TOTAL SCORE: 1878 Bonus ------- None Cogmind --------- Core Integrity 165/400 Matter 252/300 Energy 100/100 System Corruption 2% Temperature Cool (57) Movement Core (100) Ox1 Location -9/Mines Parts ------- > --- POWER (1) -------- (None) > --- PROPULSION (3) --- (None) > --- UTILITY (3) ------ Hardened Light Armor Plating > --- WEAPON (2) ------- Datajack > --- INVENTORY (5) ---- Improved Targeting Computer Power Shielding Hardened Light Armor Plating Peak State ------------ > --- POWER ------------ Light Ion Engine > --- PROPULSION ------- Aluminum Leg Aluminum Leg Flight Unit > --- UTILITY ---------- Medium Storage Unit Medium Armor Plating Hardened Light Armor Plating > --- WEAPON ----------- Improved EM Shotgun Light Cannon > --- INVENTORY -------- Light Ion Engine Flight Unit Improved Targeting Computer Power Shielding Hardened Light Armor Plating Hardened Light Armor Plating EM Shotgun EM Shotgun Datajack Mining Laser [Rating: 14] Favorites ----------- Power Light Ion Engine Engine Light Ion Engine Propulsion Aluminum Leg Leg Aluminum Leg Wheel Wheel Flight Unit Flight Unit Utility Medium Storage Unit Device Tractor Beam Storage Medium Storage Unit Processor Signal Interpreter Protection Medium Armor Plating Weapon Light Cannon Energy Gun Small Laser Ballistic Gun Assault Rifle Ballistic Cannon Light Cannon Special Weapon Mining Laser Special Melee Weapon Datajack Build | -11 -10 -9 -9 ------- Run | Yrd Mat Mat Min Slots Evolved 2 | . . 2 . Power . | . . . . Propulsion 1 | . . 1 . Utility 1 | . . 1 . Weapon . | . . . . Parts Attached 32 | 7 9 7 9 Power 3 | 1 . . 2 Engine 3 | 1 . . 2 Core . | . . . . Reactor . | . . . . Propulsion 6 | 2 2 . 2 Treads . | . . . . Leg 2 | . 2 . . Wheel 2 | 2 . . . Hover . | . . . . Flight 2 | . . . 2 Utility 8 | 2 3 2 1 Device 2 | 1 1 . . Storage 2 | 1 1 . . Processor 1 | . 1 . . Hackware . | . . . . Protection 3 | . . 2 1 Artifact . | . . . . Weapon 15 | 2 4 5 4 Energy Gun 7 | 1 1 3 2 Energy Cannon . | . . . . Ballistic Gun 2 | 1 1 . . Ballistic Cannon 2 | . . 2 . Launcher . | . . . . Special Weapon 2 | . 1 . 1 Impact Weapon . | . . . . Slashing Weapon . | . . . . Piercing Weapon . | . . . . Special Melee Weapon 2 | . 1 . 1 Unidentified Prototypes 1 | . . 1 . Parts Lost 14 | . . 1 13 Power 3 | . . . 3 Propulsion 2 | . . . 2 Utility 4 | . . 1 3 Weapon 5 | . . . 5 Highest Loss Streak 12 | . . 1 12 To Critical Strikes . | . . . . Average Slot Usage (%) 87 | . 97 83 81 Engine 11 | . 14 11 10 Leg 9 | . 6 22 1 Wheel 7 | . 21 . . Flight 6 | . . . 17 Device 6 | . 12 7 . Storage 11 | . 14 11 10 Protection 10 | . . 10 20 Energy Gun 11 | . 12 10 10 Ballistic Gun 3 | . 7 2 . Ballistic Cannon 6 | . . 7 10 Special Melee Weapon 1 | . 4 . . Peak Build Rating 14 | 7 7 13 14 Average Rating 9 | 3 6 9 12 On Entrance 6 | . 7 7 13 Naked Turns . | . . . . Heaviest Build 31 | 9 17 31 31 Greatest Support 20 | 20 20 20 20 Greatest Overweight (x) 7 | . 2 1 7 Average Overweight (x) . | . . . 3 Largest Inventory Capacity 10 | 5 10 10 10 Average Capacity 8 | 5 5 10 9 Most Carried 10 | 5 5 10 10 Average Carried 6 | 3 4 7 8 Final Capacity 10 | 5 10 10 5 Final Carried 9 | 4 5 9 3 Class Distribution -------------------- 71% | Mutant 28% | Scavenger-Mutant Dominant Class ---------------- Mutant | -10/Materials Scavenger-Mutant | -9/Materials Mutant | -9/Mines Resources | -11 -10 -9 -9 ----------- Run | Yrd Mat Mat Min Matter Collected 839 | 307 173 268 91 Remotely 70 | . 16 54 . Salvage Created 851 | 74 238 283 256 Parts 49 | 5 15 10 19 Haulers Intercepted . | . . . . Recyclers Shooed 2 | . 1 1 . Parts Field Recycled . | . . . . Retrieved Matter . | . . . . Parts Self-Destructed . | . . . . Prevented . | . . . . Kills | -11 -10 -9 -9 ------- Run | Yrd Mat Mat Min Combat Hostiles Destroyed 18 | 1 3 5 9 Guns 14 | 1 3 2 8 Cannons 4 | . . 3 1 Classes Destroyed 6 | 2 1 1 2 Worker 1 | 1 . . . Tunneler 1 | . . . 1 Recycler 3 | . 2 1 . Swarmer 4 | . . . 4 Grunt 12 | 1 3 3 5 Sentry 2 | . . 2 . Best Kill Streak 4 | 1 3 2 4 Combat Bots Only 4 | 1 3 1 4 Max Kills in Single Turn 1 | 1 1 1 1 Gunslinging . | . . . . Exploded . | . . . . Melee . | . . . . Uniques/NPCs Destroyed . | . . . . Combat | -11 -10 -9 -9 -------- Run | Yrd Mat Mat Min Hostile Shots Fired 187 | 4 21 39 123 Missed 52 | 2 6 11 33 Damage Taken 1715 | 23 159 417 1116 Core 344 | 23 86 58 177 Absorbed by Shields . | . . . . Core Remaining (%) 73 | 90 56 . . Volleys Fired 83 | 4 26 22 31 Largest 2 | 2 2 2 2 Hottest 100 | 60 100 90 100 Shots Fired 139 | 7 39 44 49 Gun 74 | 7 32 12 23 Cannon 54 | . . 32 22 Launcher . | . . . . Special 11 | . 7 . 4 Kinetic 71 | 4 13 32 22 Thermal 33 | 3 26 . 4 Explosive . | . . . . Electromagnetic 35 | . . 12 23 Robot Hit Streak 8 | 1 4 5 8 Robot Miss Streak 4 | 3 3 4 4 Penetration Max . | . . . . Secondary Targets . | . . . . Shots Hit Robots 81 | 3 17 28 33 Core Hits 42 | 3 8 13 18 Critical Kills . | . . . . Critical Parts Destroyed . | . . . . Critical Strikes 1 | . . . 1 Blast 1 | . . . 1 Melee Attacks 7 | . 4 . 3 Impact . | . . . . Slashing . | . . . . Piercing . | . . . . Sneak Attacks 3 | . 3 . . Combat Hostiles . | . . . . Follow-up Attacks . | . . . . Damage Inflicted 1313 | 43 175 498 597 Guns 648 | 43 172 146 287 Cannons 540 | . . 333 207 Explosions . | . . . . Melee . | . . . . Ramming 29 | . 3 19 7 Kinetic 646 | 21 85 333 207 Thermal 205 | 22 87 . 96 Explosive . | . . . . Electromagnetic 433 | . . 146 287 Impact . | . . . . Slashing . | . . . . Piercing . | . . . . Highest Corruption 2 | . . . 2 Average Corruption 2 | . . . 2 Corruption Purged . | . . . . Corruption Blocked . | . . . . Effects 4 | . . . 4 Matter Fused 3 | . . . 3 Data Loss (minor) 1 | . . . 1 Overload Shots . | . . . . Overflow Damage . | . . . . Projectiles . | . . . . Explosions . | . . . . Melee . | . . . . Knockbacks 9 | . . 4 5 Impact . | . . . . Kinetic 9 | . . 4 5 Secondary . | . . . . Self-Inflicted Damage 2 | . . . 2 Shots . | . . . . Rammed 3 | . . . 3 Targets Rammed 12 | . 1 8 3 Kicked 9 | . 1 8 . Crushed . | . . . . Highest Temperature 369 | 12 12 369 196 Average Temperature 88 | 10 7 132 72 Received Heat Transfer 879 | 12 90 222 555 Effects 6 | . . 6 . Shutdowns 1 | . . 1 . Energy Bleed 1 | . . 1 . Interference 1 | . . 1 . Matter Decay 2 | . . 2 . Damage (minor) 1 | . . 1 . Siege Activations . | . . . . Robots Corrupted . | . . . . Combat Hostiles . | . . . . Parts Fried 2 | . . 1 1 Impact Corruptions . | . . . . Robots Melted . | . . . . Combat Hostiles . | . . . . Parts Melted . | . . . . Heat Transferred 450 | 50 200 . 200 Parts Sabotaged . | . . . . Parts Stolen . | . . . . Parts Stripped . | . . . . Power Chain Reactions . | . . . . Alert | -11 -10 -9 -9 ------- Run | Yrd Mat Mat Min Peak Influence 190 | 25 84 190 185 Initial 35 | . 16 35 25 Average 74 | 4 49 90 95 Maximum Alert Level . | . . . . Low Security (%) 100 | 100 100 100 100 Level 1 . | . . . . Level 2 . | . . . . Level 3 . | . . . . Level 4 . | . . . . Level 5 . | . . . . High Security . | . . . . Max Security . | . . . . Squads Dispatched 4 | . 2 2 . Investigation 1 | . 1 . . Extermination . | . . . . Reinforcement 3 | . 1 2 . Assault . | . . . . Garrison . | . . . . Intercept . | . . . . Searches Triggered . | . . . . Construction Impeded . | . . . . Haulers Reinforced . | . . . . Active Scanning Responses . | . . . . Cargo Convoy Interrupts . | . . . . Stealth | -11 -10 -9 -9 --------- Run | Yrd Mat Mat Min Distress Signals 3 | . 1 2 . Communications Jammed . | . . . . Distress Signals . | . . . . Times Spotted 34 | 1 6 15 12 Peak Tracking Total 5 | 1 4 4 5 Tactical Retreats 1 | . . . 1 Traps | -11 -10 -9 -9 ------- Run | Yrd Mat Mat Min Traps Triggered 1 | . 1 . . Indirectly . | . . . . Trap Hack Attempts . | . . . . Triggered . | . . . . Disarmed 1 | . 1 . . Reprogrammed . | . . . . Reused . | . . . . Traps Extracted . | . . . . Installed . | . . . . Triggered . | . . . . Machines | -11 -10 -9 -9 ---------- Run | Yrd Mat Mat Min Machines Disabled . | . . . . Max in Single Turn . | . . . . Machines Repaired . | . . . . Machines Dismantled . | . . . . Machines Sabotaged . | . . . . Overloaded Fab Kills . | . . . . Hacking | -11 -10 -9 -9 --------- Run | Yrd Mat Mat Min Machines Accessed 7 | . 4 3 . Terminals 6 | . 3 3 . Fabricators . | . . . . Repair Stations . | . . . . Recycling Units 1 | . 1 . . Scanalyzers . | . . . . Garrison Access . | . . . . Total Hacks 16 | . 9 7 . Successful 11 | . 8 3 . Failed 5 | . 1 4 . Catastrophic . | . . . . Database Lockouts . | . . . . Manual 1 | . 1 . . Terminals 15 | . 8 7 . Fabricators . | . . . . Repair Stations . | . . . . Recycling Units 1 | . 1 . . Scanalyzers . | . . . . Garrison Access . | . . . . Terminal Hacks 10 | . 7 3 . Record 3 | . 3 . . Prototype ID Bank 2 | . 1 1 . Alert Level 1 | . 1 . . Locate Traps 1 | . 1 . . Disarm Traps 1 | . 1 . . Hauler Manifests 1 | . . 1 . Zone Layout 1 | . . 1 . Fabricator Hacks . | . . . . Repair Station Hacks . | . . . . Recycling Unit Hacks 1 | . 1 . . Recycle Component 1 | . 1 . . Scanalyzer . | . . . . Garrison Access Hacks . | . . . . Unauthorized Hacks . | . . . . Terminals . | . . . . Fabricators . | . . . . Repair Stations . | . . . . Recycling Units . | . . . . Scanalyzers . | . . . . Garrison Access . | . . . . Data Cores Recovered . | . . . . Used . | . . . . Hacking Detections 2 | . . 2 . Full Trace Events . | . . . . Feedback Events . | . . . . Feedback Blocked . | . . . . Robot Schematics Acquired . | . . . . Robots Built . | . . . . Authchips . | . . . . Time . | . . . . Total Robot Build Rating . | . . . . Part Schematics Acquired . | . . . . Parts Built . | . . . . Authchips . | . . . . Time . | . . . . Total Part Build Rating . | . . . . Parts Repaired . | . . . . Time . | . . . . Parts Recycled 1 | . 1 . . Recycled Matter . | . . . . Retrieved Matter . | . . . . Retrieved Components . | . . . . Parts Scanalyzed . | . . . . Part Schematics Acquired . | . . . . Parts Damaged . | . . . . Bothacking | -11 -10 -9 -9 ------------ Run | Yrd Mat Mat Min Used RIF Installer . | . . . . Robots Hacked 2 | . 2 . . Non-combat 2 | . 2 . . Combat . | . . . . Robot Hacks Applied 3 | . 3 . . parse_system 2 | . 2 . . no_distress 1 | . 1 . . Relay Couplers Released . | . . . . Fabnet Peak Effective % . | . . . . Robots Rewired . | . . . . Allies Hacked . | . . . . Hacks Repelled . | . . . . Allies | -11 -10 -9 -9 -------- Run | Yrd Mat Mat Min Total Allies . | . . . . Largest Group . | . . . . Highest-Rated Group . | . . . . Highest-Rated Ally . | . . . . Total Orders . | . . . . Ally Attacks . | . . . . Total Damage . | . . . . Kills . | . . . . Allies Corrupted . | . . . . Allies Melted . | . . . . Intel | -11 -10 -9 -9 ------- Run | Yrd Mat Mat Min Robot Analysis Total . | . . . . Derelict Logs Recovered 1 | . . . 1 Drone Launches . | . . . . Drone Recoveries . | . . . . Exploration | -11 -10 -9 -9 ------------- Run | Yrd Mat Mat Min Turns Passed 1920 | 92 626 526 676 Spaces Moved 1134 | 91 573 270 200 Core 40 | 27 5 . 8 Treads . | . . . . Legs 389 | . 110 270 9 Wheels 522 | 64 458 . . Hover . | . . . . Flight 183 | . . . 183 Fastest Speed 50 | 50 80 120 190 Average Speed 136 | 71 88 155 279 Slowest Speed 620 | 80 150 190 620 Overloaded Moves . | . . . . Propulsion Burnouts . | . . . . Robots Hopped . | . . . . Cave-ins Triggered . | . . . . Exploration Rate (%) 34 | 6 65 25 43 Regions Visited 3 Branch Regions 1 Pre-discovered Areas 1 | . . . 1 Known Exits Taken . | . . . . Unknown Exits Taken 3 | 1 1 1 . Scrap Searched . | . . . . Spaces Dug 5 | . 5 . . Terrain Destroyed 5 | . 5 . . Melee . | . . . . Projectile 5 | . 5 . . AOE . | . . . . Terrain Rammed . | . . . . Walls Destroyed . | . . . . Machines Disabled . | . . . . Actions | -11 -10 -9 -9 --------- Run | Yrd Mat Mat Min Total 1340 | 109 644 334 253 Wait 18 | . 4 10 4 Move 1131 | 90 572 269 200 Hop . | . . . . Pick Up 31 | 8 12 10 1 Fast Attach 8 | 3 3 . 2 Attach 24 | 4 6 7 7 Detach 8 | . 4 4 . Swap . | . . . . Drop 18 | . 12 4 2 Fire 83 | 4 26 22 31 Melee 7 | . 4 . 3 Ram 3 | . . . 3 Kick 9 | . 1 8 . Crush . | . . . . Escape Stasis . | . . . . Rewire . | . . . . Trap . | . . . . Miscellaneous . | . . . . Route ------- -11/Scrapyard -10/Materials (discovered 2 exits: *Mat x2) -9/Materials (discovered 2 exits: [*Min x2]) -9/Mines (discovered 2 exits: [*Mat x2]) History --------- Turn | Location | Event 2 | -11/Scrapyard | Met Revision 17 72 | -11/Scrapyard | Discovered new exit (range 8) 93 | -11/Scrapyard | Entered Materials 301 | -10/Materials | Build established: Mutant 331 | -10/Materials | Discovered new exit (range 3) 479 | -10/Materials | Discovered new exit (range 13) 719 | -10/Materials | Entered another Materials area 719 | -9/Materials | Evolved 2 slots: Propulsion x1, Utility x1 791 | -9/Materials | Discovered new exit (range 9) 872 | -9/Materials | Build established: Scavenger-Mutant 1069 | -9/Materials | Discovered new exit (range 6) 1245 | -9/Materials | Entered Mines 1366 | -9/Mines | Found a hidden stash of uninstalled traps 1376 | -9/Mines | Build established: Mutant 1566 | -9/Mines | Learned location of Zion (-7) 1611 | -9/Mines | Discovered new exit (range 6) 1914 | -9/Mines | Discovered new exit (range 16) 1916 | -9/Mines | Core integrity fell below 50% 1921 | -9/Mines | Self-destructed Last Messages --------------- Broken Lgt. Ion Engine destroyed. K-01 Serf collects debris. G-34 Mercenary heat damages Aluminum Leg. K-01 Serf collects debris. T-07 Excavator destroyed. Mining Laser destroyed. K-01 Serf collects debris. Jacked G-34 Mercenary... Command string: \\ No effect. K-01 Serf collects debris. Critical hit (Burn: +37). K-01 Serf collects debris. EXIT=FOUND K-01 Serf collects debris. Lgt. Ion Engine destroyed. Jacked G-34 Mercenary... Command string: //help No effect. Med. Storage Unit destroyed. Map ----- +----------------------------------------------------+ | ???????## #?????# #???????????# ### #??? | | ??????## #?????# #### ##??????????# #?# #??? | | ??????# ####### #?## ##?????????# #?# #??? | | ??????# ### ########### ### #### | | ??????# ########### ## | | ??????## &&##?????????# ####### | | ???????## & &#??????????# ############# #?????# | | ????????# & #??????????# #???????????# ####??# | | ????????# #??????????## #???????????# #??# | | ????????## ##???????????# ???????????#### #??# | | ?????????# ##????????????# ??????????????# #### | | ?????????# ??????????????## ?????????????## ## | | ?????????# ???????????????####????????????##*[ | | ?????????# ??????????????????????????????##!%= | | ????????? ??????????????????????????????# """ | | ????????? ?????????????????????????????## """ | | ????????? ????????#######??????????????# """ | | ????????? ???????## ##?????????????# # | | ????????##????????# ####??????????# #### | | ??????????????????# ##??####???# ##??? | | ???????????????????# #??# ##??# ##???? | | ???????????????????# #### #??# ##????? | | ??????????????????## ## #### ##????? | | ?????????????????##%* k ## | | ?????????????????#= u*%= | | ??????????# [%%#### @%! r #### | | ?????????? ????##%g= ##??## | | ?????????? ## ??????#*g## #????## | | ??????????????## ??????# ## #?????? | | ???????????????#???????# ## #?????? | | ???????????????????????# ### #?????? ## | | ???????????????????????# ##?# # ##?????? ##? | | ???????????????????????# #??# ####??????? #?? | | ???????????????????????# #??# #?????????? ##?? | | ???????????????????????# #??# #?????????? #??? | | ???????????????????????# ???# #??????????? ??? | | ??????????????????????? ???# #??????????? ??? | | ??????????????????????? ???# #??????????? #??? | | ??????????????????????? ???# ????????????#????? | | ??????????????????????? ???? ?????????????????? | | ??????????????????????? < ???????????????????????? | | ?????????????????????????????????????????????????? | | ?????????????????????????????????????????????????? | | ?????????????????????????????????????????????????? | | ?????????????????????????????????????????????????? | | ?????????????????????????????????????????????????? | | ?????????????????????????????????????????????????? | | ?????????????????????????????????????????????????? | | ?????????????????????????????????????????????????? | | ?????????????????????????????????????????????????? | +----------------------------------------------------+ Best States ------------- Heat Dissipation 35 Energy Generation 10 Energy Capacity 125 Matter Stores 400 Matter Capacity 400 Sight Range 16 Terrain Scan Density 10 Armor Coverage 375 Evasion (%) 55 Item Schematics ----------------- None Robot Schematics ------------------ None Fabricated ------------ Nothing Alien Tech Used ----------------- None Achievements -------------- Shopping List Challenges ------------ None Game ------ Seed AccelerationShadePit Manual? 0 Play Time 00:38:37 Cumulative 2.1 hours Start 2024.10.03 @ 03:44:18 End 2024.10.03 @ 04:28:06 Sessions 1 Manual Loads 0 Difficulty Rogue Special Mode None Game No. 2 Rogue 2 Adventurer 0 Explorer 0 Win Type - Total 0 Types 0/0/0/0/0/0/0/0/0 Lore% 1 Gallery% 4 Achievement% 3 Wizard Run 0 Options --------- Layout 1 ASCII 0 Keyboard 0 Movement Mouse Keybinds 0 Fullscreen 1 Font 24/Terminus Map View 50x35 Zoom Use 0% Tactical HUD 0 Map Filters NONE Filters NONE Steam 1 RUN: b5990387-b625-4a4b-956d-a1b12e77d1df